[Event "Late-Titled-Tuesday-Blitz-February-06-2024"]
[Site "Chess.com"]
[Date "2024.02.06"]
[Round "2"]
[White "js20000"]
[Black "Squirlolz"]
[Result "0-1"]
[WhiteElo "2818"]
[BlackElo "2567"]
[TimeControl "180+1"]
[EndTime "14:18:32 PST"]
[Termination "Squirlolz won on time"]

1. d4 {[%clk 0:03:00.9]} 1... Nf6 {[%clk 0:02:59.6]} 2. c4 {[%clk 0:02:58.4]}
2... c5 {[%clk 0:03:00]} 3. Nf3 {[%clk 0:02:56.4]} 3... e6 {[%clk 0:02:55.3]} 4.
g3 {[%clk 0:02:53.5]} 4... b6 {[%clk 0:02:46.8]} 5. Bg2 {[%clk 0:02:50.7]} 5...
Bb7 {[%clk 0:02:47]} 6. d5 {[%clk 0:02:50.3]} 6... exd5 {[%clk 0:02:44]} 7. Nh4
{[%clk 0:02:46.6]} 7... g6 {[%clk 0:02:42.3]} 8. Nc3 {[%clk 0:02:44.7]} 8... Bg7
{[%clk 0:02:40.2]} 9. Bg5 {[%clk 0:02:39.4]} 9... Qc8 {[%clk 0:02:34.2]} 10. Nb5
{[%clk 0:02:28.4]} 10... O-O {[%clk 0:02:16.7]} 11. Nd6 {[%clk 0:02:23.4]} 11...
Qc7 {[%clk 0:02:08.2]} 12. Nxb7 {[%clk 0:02:17.7]} 12... Qxb7 {[%clk 0:01:49.6]}
13. cxd5 {[%clk 0:01:25]} 13... d6 {[%clk 0:01:46]} 14. O-O {[%clk 0:01:24.9]}
14... b5 {[%clk 0:01:44.6]} 15. a4 {[%clk 0:01:21.8]} 15... a6 {[%clk 0:01:33]}
16. axb5 {[%clk 0:01:15.7]} 16... axb5 {[%clk 0:01:33.9]} 17. Rxa8 {[%clk
0:01:15.5]} 17... Qxa8 {[%clk 0:01:32.4]} 18. b4 {[%clk 0:01:12.7]} 18... Nbd7
{[%clk 0:01:25.3]} 19. bxc5 {[%clk 0:01:10.6]} 19... Nxc5 {[%clk 0:01:25.2]} 20.
Be3 {[%clk 0:01:03.5]} 20... Nfd7 {[%clk 0:01:21]} 21. Nf3 {[%clk 0:01:00.5]}
21... b4 {[%clk 0:01:16.6]} 22. Nd4 {[%clk 0:00:56.4]} 22... Re8 {[%clk
0:01:14.9]} 23. Bf4 {[%clk 0:00:52]} 23... Ne5 {[%clk 0:01:13.4]} 24. Nc6 {[%clk
0:00:51.5]} 24... b3 {[%clk 0:01:10.5]} 25. Be3 {[%clk 0:00:43.2]} 25... Qa3
{[%clk 0:00:50.6]} 26. Bd4 {[%clk 0:00:37.2]} 26... b2 {[%clk 0:00:26.9]} 27.
Qc2 {[%clk 0:00:24.6]} 27... Nxc6 {[%clk 0:00:23.4]} 28. Bxg7 {[%clk 0:00:25]}
28... Kxg7 {[%clk 0:00:20.1]} 29. dxc6 {[%clk 0:00:25.2]} 29... Rb8 {[%clk
0:00:11.8]} 30. Rb1 {[%clk 0:00:24.5]} 30... Kg8 {[%clk 0:00:07.1]} 31. Bd5
{[%clk 0:00:20.5]} 31... Na4 {[%clk 0:00:05.3]} 32. c7 {[%clk 0:00:14.9]} 32...
Rc8 {[%clk 0:00:04.9]} 33. Bb7 {[%clk 0:00:15.2]} 33... Rxc7 {[%clk 0:00:03.2]}
34. Qxc7 {[%clk 0:00:14.4]} 34... Nc3 {[%clk 0:00:04.1]} 35. Qb8+ {[%clk
0:00:08.4]} 35... Kg7 {[%clk 0:00:04]} 36. Rf1 {[%clk 0:00:01.4]} 36... b1=Q
{[%clk 0:00:02.4]} 37. Rxb1 {[%clk 0:00:02]} 37... Nxb1 {[%clk 0:00:03.3]} 38.
Bf3 {[%clk 0:00:01.9]} 38... Nc3 {[%clk 0:00:03]} 39. Kg2 {[%clk 0:00:01.8]}
39... Na4 {[%clk 0:00:01.8]} 40. Qe8 {[%clk 0:00:02.3]} 40... Nc5 {[%clk
0:00:02.1]} 41. Bd5 {[%clk 0:00:01.8]} 41... Ne6 {[%clk 0:00:02.4]} 0-1

[Event "Late-Titled-Tuesday-Blitz-February-06-2024"]
[Site "Chess.com"]
[Date "2024.02.06"]
[Round "2"]
[White "AmanteDeMoi"]
[Black "VladimirKramnik"]
[Result "0-1"]
[WhiteElo "2602"]
[BlackElo "2924"]
[TimeControl "180+1"]
[EndTime "14:18:34 PST"]
[Termination "VladimirKramnik won by resignation"]

1. Nf3 {[%clk 0:03:00]} 1... Nf6 {[%clk 0:02:58.8]} 2. e3 {[%clk 0:02:59.8]}
2... c5 {[%clk 0:02:58]} 3. b3 {[%clk 0:03:00.1]} 3... g6 {[%clk 0:02:55.5]} 4.
Bb2 {[%clk 0:03:00.3]} 4... Bg7 {[%clk 0:02:56]} 5. Be2 {[%clk 0:03:00.9]} 5...
O-O {[%clk 0:02:55.6]} 6. O-O {[%clk 0:03:00.9]} 6... Nc6 {[%clk 0:02:55.3]} 7.
c4 {[%clk 0:03:00.9]} 7... b6 {[%clk 0:02:51]} 8. d4 {[%clk 0:03:00.5]} 8...
cxd4 {[%clk 0:02:50.9]} 9. Nxd4 {[%clk 0:03:00.7]} 9... Bb7 {[%clk 0:02:50.5]}
10. Nc3 {[%clk 0:03:00.6]} 10... Nxd4 {[%clk 0:02:43.7]} 11. exd4 {[%clk
0:02:42.1]} 11... d5 {[%clk 0:02:42]} 12. c5 {[%clk 0:02:42.3]} 12... bxc5
{[%clk 0:02:33.3]} 13. dxc5 {[%clk 0:02:42.5]} 13... Ne4 {[%clk 0:02:23.4]} 14.
Nxe4 {[%clk 0:01:40]} 14... Bxb2 {[%clk 0:02:21.8]} 15. Rb1 {[%clk 0:01:40.1]}
15... Ba3 {[%clk 0:02:19.7]} 16. b4 {[%clk 0:01:21.9]} 16... dxe4 {[%clk
0:02:17.2]} 17. Qb3 {[%clk 0:01:14.5]} 17... Qd2 {[%clk 0:02:06.2]} 18. Bc4
{[%clk 0:00:53.8]} 18... Bxb4 {[%clk 0:01:48.7]} 19. Qxb4 {[%clk 0:00:53.8]}
19... Qxb4 {[%clk 0:01:48.4]} 20. Rxb4 {[%clk 0:00:54.5]} 20... Bc6 {[%clk
0:01:48.5]} 21. Bb5 {[%clk 0:00:40.1]} 21... Rab8 {[%clk 0:01:48]} 22. Rfb1
{[%clk 0:00:39.5]} 22... Rfd8 {[%clk 0:01:45]} 23. Kf1 {[%clk 0:00:36.1]} 23...
Bd5 {[%clk 0:01:27.5]} 24. c6 {[%clk 0:00:32.2]} 24... Rdc8 {[%clk 0:01:23.5]}
25. Rc1 {[%clk 0:00:28.5]} 25... Bxc6 {[%clk 0:01:10.5]} 26. Ke1 {[%clk
0:00:16.3]} 26... e3 {[%clk 0:00:49.3]} 27. fxe3 {[%clk 0:00:11.9]} 27... Bxg2
{[%clk 0:00:49.4]} 28. Rxc8+ {[%clk 0:00:07.2]} 28... Rxc8 {[%clk 0:00:50]} 29.
Be2 {[%clk 0:00:07.2]} 29... Bd5 {[%clk 0:00:48.5]} 30. Ra4 {[%clk 0:00:07.1]}
30... Rc7 {[%clk 0:00:47.2]} 31. Ra5 {[%clk 0:00:07.8]} 31... Be6 {[%clk
0:00:46.4]} 32. Kd2 {[%clk 0:00:08.2]} 32... Kg7 {[%clk 0:00:46.3]} 33. a3
{[%clk 0:00:08.4]} 33... Kf6 {[%clk 0:00:44.8]} 34. e4 {[%clk 0:00:08.6]} 34...
g5 {[%clk 0:00:40.6]} 35. Ke3 {[%clk 0:00:07]} 35... h6 {[%clk 0:00:39.1]} 36.
e5+ {[%clk 0:00:07.3]} 36... Kg7 {[%clk 0:00:38.4]} 37. Bd3 {[%clk 0:00:06]}
37... h5 {[%clk 0:00:35.4]} 38. Kd4 {[%clk 0:00:05.4]} 38... g4 {[%clk 0:00:34]}
39. Ke3 {[%clk 0:00:05.9]} 39... h4 {[%clk 0:00:30.1]} 40. Kf4 {[%clk
0:00:06.1]} 40... Rc3 {[%clk 0:00:25.2]} 41. Be4 {[%clk 0:00:05.3]} 41... Rc4
{[%clk 0:00:22.1]} 42. Ke3 {[%clk 0:00:04]} 42... g3 {[%clk 0:00:20.9]} 43. hxg3
{[%clk 0:00:04.9]} 43... h3 {[%clk 0:00:19.9]} 44. Rxa7 {[%clk 0:00:05.8]} 44...
Rxe4+ {[%clk 0:00:17.9]} 45. Kxe4 {[%clk 0:00:05.8]} 45... h2 {[%clk 0:00:18.3]}
46. Rxe7 {[%clk 0:00:03.6]} 46... h1=Q+ {[%clk 0:00:18.1]} 47. Kf4 {[%clk
0:00:04.2]} 47... Qf1+ {[%clk 0:00:17.9]} 0-1

[Event "Late-Titled-Tuesday-Blitz-February-06-2024"]
[Site "Chess.com"]
[Date "2024.02.06"]
[Round "2"]
[White "Mackster23"]
[Black "Grindaveci"]
[Result "1-0"]
[WhiteElo "2757"]
[BlackElo "2438"]
[TimeControl "180+1"]
[EndTime "14:18:34 PST"]
[Termination "Mackster23 won on time"]

1. e4 {[%clk 0:02:51.9]} 1... e5 {[%clk 0:02:58.1]} 2. Nf3 {[%clk 0:02:51.1]}
2... Nc6 {[%clk 0:02:58.6]} 3. Bb5 {[%clk 0:02:51]} 3... a6 {[%clk 0:02:59.2]}
4. Ba4 {[%clk 0:02:50.9]} 4... Nf6 {[%clk 0:02:59.3]} 5. O-O {[%clk 0:02:50.6]}
5... Be7 {[%clk 0:02:59.7]} 6. d3 {[%clk 0:02:50.6]} 6... b5 {[%clk 0:02:59.4]}
7. Bb3 {[%clk 0:02:50.8]} 7... d6 {[%clk 0:03:00]} 8. a3 {[%clk 0:02:50.7]} 8...
O-O {[%clk 0:03:00]} 9. Nc3 {[%clk 0:02:50.3]} 9... Bd7 {[%clk 0:02:57.5]} 10.
Nd5 {[%clk 0:02:39.9]} 10... Nxd5 {[%clk 0:02:53.2]} 11. Bxd5 {[%clk 0:02:38.1]}
11... Rb8 {[%clk 0:02:53.5]} 12. c3 {[%clk 0:02:38]} 12... Bf6 {[%clk
0:02:51.4]} 13. a4 {[%clk 0:02:34.1]} 13... Ne7 {[%clk 0:02:51.1]} 14. Bb3
{[%clk 0:02:33]} 14... b4 {[%clk 0:02:51.3]} 15. a5 {[%clk 0:02:32.6]} 15... Bg4
{[%clk 0:02:47.2]} 16. Bc4 {[%clk 0:02:30.2]} 16... Bc8 {[%clk 0:02:21.2]} 17.
cxb4 {[%clk 0:02:04.5]} 17... Rxb4 {[%clk 0:02:18.3]} 18. Qc2 {[%clk 0:02:04.1]}
18... c6 {[%clk 0:02:14.3]} 19. Bd2 {[%clk 0:02:03.3]} 19... Rb8 {[%clk
0:02:13.8]} 20. b4 {[%clk 0:02:00.1]} 20... d5 {[%clk 0:02:12.2]} 21. Bb3 {[%clk
0:02:00]} 21... Qd6 {[%clk 0:02:03]} 22. h3 {[%clk 0:01:56.5]} 22... Rd8 {[%clk
0:01:59.7]} 23. Rac1 {[%clk 0:01:46.9]} 23... Be6 {[%clk 0:01:52.3]} 24. Rfd1
{[%clk 0:01:37.1]} 24... h6 {[%clk 0:01:13.7]} 25. Be1 {[%clk 0:01:21.7]} 25...
Rb7 {[%clk 0:01:12]} 26. Ba4 {[%clk 0:01:19.6]} 26... Rdb8 {[%clk 0:01:06.3]}
27. Nh2 {[%clk 0:00:49.1]} 27... Bg5 {[%clk 0:01:00.6]} 28. Rb1 {[%clk 0:00:49]}
28... h5 {[%clk 0:00:49.9]} 29. Nf3 {[%clk 0:00:45.2]} 29... Bh6 {[%clk
0:00:47.1]} 30. d4 {[%clk 0:00:43.5]} 30... exd4 {[%clk 0:00:38]} 31. e5 {[%clk
0:00:43.5]} 31... Qd7 {[%clk 0:00:27.3]} 32. Nxd4 {[%clk 0:00:43.8]} 32... Rc7
{[%clk 0:00:20.2]} 33. Qc5 {[%clk 0:00:38.5]} 33... Ng6 {[%clk 0:00:17.5]} 34.
Bxc6 {[%clk 0:00:31.4]} 34... Qc8 {[%clk 0:00:17.5]} 35. Qd6 {[%clk 0:00:28.8]}
35... Bf4 {[%clk 0:00:15.1]} 36. Bxd5 {[%clk 0:00:11.7]} 36... Bxe5 {[%clk
0:00:14.2]} 37. Bxe6 {[%clk 0:00:12.1]} 37... Bxd6 {[%clk 0:00:13.5]} 38. Bxc8
{[%clk 0:00:12.1]} 38... Rbxc8 {[%clk 0:00:14]} 39. b5 {[%clk 0:00:11.8]} 39...
Rc5 {[%clk 0:00:06.9]} 40. b6 {[%clk 0:00:11.4]} 40... Be5 {[%clk 0:00:05.9]}
41. Nf3 {[%clk 0:00:08.4]} 41... Bf6 {[%clk 0:00:04.5]} 42. Bb4 {[%clk
0:00:07.7]} 42... Rb5 {[%clk 0:00:04]} 43. Bd6 {[%clk 0:00:08.3]} 1-0

[Event "Late-Titled-Tuesday-Blitz-February-06-2024"]
[Site "Chess.com"]
[Date "2024.02.06"]
[Round "2"]
[White "prime-morty"]
[Black "kuli4ik"]
[Result "0-1"]
[WhiteElo "2568"]
[BlackElo "2860"]
[TimeControl "180+1"]
[EndTime "14:18:41 PST"]
[Termination "kuli4ik won by checkmate"]

1. c4 {[%clk 0:03:00.9]} 1... g6 {[%clk 0:02:59.1]} 2. Nc3 {[%clk 0:03:01.3]}
2... Bg7 {[%clk 0:02:59.4]} 3. g3 {[%clk 0:03:02]} 3... c5 {[%clk 0:02:53.3]} 4.
Bg2 {[%clk 0:03:02.1]} 4... d6 {[%clk 0:02:53.4]} 5. a3 {[%clk 0:03:02.4]} 5...
Bxc3 {[%clk 0:02:50.3]} 6. bxc3 {[%clk 0:02:55.2]} 6... Nc6 {[%clk 0:02:49.4]}
7. Rb1 {[%clk 0:02:53.9]} 7... Qd7 {[%clk 0:02:49]} 8. Qa4 {[%clk 0:02:48.6]}
8... Nf6 {[%clk 0:02:32.2]} 9. d3 {[%clk 0:02:47.8]} 9... Nd8 {[%clk 0:02:18.8]}
10. Qxd7+ {[%clk 0:02:41.4]} 10... Kxd7 {[%clk 0:02:13.5]} 11. Nh3 {[%clk
0:02:26.1]} 11... Rb8 {[%clk 0:02:08.7]} 12. Bg5 {[%clk 0:02:22]} 12... Ne8
{[%clk 0:02:06.8]} 13. Bd2 {[%clk 0:02:15]} 13... b6 {[%clk 0:02:04.7]} 14. Nf4
{[%clk 0:02:13.8]} 14... Bb7 {[%clk 0:02:00.6]} 15. e4 {[%clk 0:02:14.1]} 15...
e6 {[%clk 0:01:52.1]} 16. h4 {[%clk 0:02:10.4]} 16... h6 {[%clk 0:01:50.8]} 17.
O-O {[%clk 0:02:01.2]} 17... Nc6 {[%clk 0:01:49.5]} 18. Be3 {[%clk 0:01:48.9]}
18... Ke7 {[%clk 0:01:41.7]} 19. Rfd1 {[%clk 0:01:41.6]} 19... Nf6 {[%clk
0:01:39.2]} 20. f3 {[%clk 0:01:40.3]} 20... Nd7 {[%clk 0:01:31.8]} 21. Nh3
{[%clk 0:01:37.3]} 21... Nde5 {[%clk 0:01:28.1]} 22. Nf2 {[%clk 0:01:36.4]}
22... Na5 {[%clk 0:01:22.4]} 23. f4 {[%clk 0:01:34.1]} 23... Nd7 {[%clk
0:01:22.3]} 24. g4 {[%clk 0:01:24.7]} 24... h5 {[%clk 0:01:19.8]} 25. g5 {[%clk
0:01:24.3]} 25... Bc6 {[%clk 0:01:12.2]} 26. Bh3 {[%clk 0:01:15.6]} 26... Rb7
{[%clk 0:01:04.3]} 27. Re1 {[%clk 0:01:15.1]} 27... Rhb8 {[%clk 0:01:02.4]} 28.
f5 {[%clk 0:00:48.1]} 28... Ne5 {[%clk 0:01:01.6]} 29. Kg2 {[%clk 0:00:44.7]}
29... exf5 {[%clk 0:00:58.5]} 30. Bf4 {[%clk 0:00:43.7]} 30... Kf8 {[%clk
0:00:47.9]} 31. Kg3 {[%clk 0:00:40.3]} 31... fxe4 {[%clk 0:00:46.7]} 32. Bxe5
{[%clk 0:00:40.1]} 32... dxe5 {[%clk 0:00:46.2]} 33. Nxe4 {[%clk 0:00:39.8]}
33... Rd8 {[%clk 0:00:42.9]} 34. Rbd1 {[%clk 0:00:36.8]} 34... Re7 {[%clk
0:00:26.8]} 35. Nf6 {[%clk 0:00:35]} 35... Ba4 {[%clk 0:00:20.3]} 36. Nd5 {[%clk
0:00:30.2]} 36... Bxd1 {[%clk 0:00:19.9]} 37. Nxe7 {[%clk 0:00:28.2]} 37...
Rxd3+ {[%clk 0:00:19.5]} 38. Kh2 {[%clk 0:00:26.5]} 38... Kxe7 {[%clk
0:00:19.9]} 39. Rxe5+ {[%clk 0:00:26.5]} 39... Kf8 {[%clk 0:00:20.3]} 40. Bf1
{[%clk 0:00:22.9]} 40... Rd2+ {[%clk 0:00:20.2]} 41. Kg3 {[%clk 0:00:22.7]}
41... Bg4 {[%clk 0:00:20.9]} 42. Re3 {[%clk 0:00:17.3]} 42... Be6 {[%clk
0:00:20.8]} 43. Kf4 {[%clk 0:00:15.8]} 43... Bxc4 {[%clk 0:00:20.5]} 44. Bh3
{[%clk 0:00:13.6]} 44... Rf2+ {[%clk 0:00:18.6]} 45. Ke5 {[%clk 0:00:13.1]}
45... Rd2 {[%clk 0:00:18.2]} 46. Kf6 {[%clk 0:00:12.1]} 46... Nc6 {[%clk
0:00:17.6]} 47. a4 {[%clk 0:00:08.5]} 47... Rd6+ {[%clk 0:00:17.4]} 48. Be6
{[%clk 0:00:07.3]} 48... Bxe6 {[%clk 0:00:17.2]} 49. a5 {[%clk 0:00:05.3]} 49...
Bd5+ {[%clk 0:00:16.7]} 50. Re6 {[%clk 0:00:05.1]} 50... Rxe6# {[%clk
0:00:17.6]} 0-1

[Event "Late-Titled-Tuesday-Blitz-February-06-2024"]
[Site "Chess.com"]
[Date "2024.02.06"]
[Round "2"]
[White "jcibarra"]
[Black "EsmeraldasAnderson03"]
[Result "1-0"]
[WhiteElo "2881"]
[BlackElo "2403"]
[TimeControl "180+1"]
[EndTime "14:18:45 PST"]
[Termination "jcibarra won by resignation"]

1. e4 {[%clk 0:03:00.9]} 1... c5 {[%clk 0:02:58.9]} 2. Nf3 {[%clk 0:03:01.5]}
2... d6 {[%clk 0:02:59.2]} 3. c3 {[%clk 0:03:01.6]} 3... Nf6 {[%clk 0:02:59.5]}
4. h3 {[%clk 0:03:02.1]} 4... Nc6 {[%clk 0:02:57.2]} 5. Bd3 {[%clk 0:03:02.6]}
5... e6 {[%clk 0:02:51.1]} 6. Bc2 {[%clk 0:03:02.6]} 6... Be7 {[%clk 0:02:50.7]}
7. O-O {[%clk 0:03:03]} 7... O-O {[%clk 0:02:50.4]} 8. d4 {[%clk 0:03:03.6]}
8... cxd4 {[%clk 0:02:51]} 9. cxd4 {[%clk 0:03:04.5]} 9... Nb4 {[%clk
0:02:51.6]} 10. Nc3 {[%clk 0:02:49.4]} 10... Nxc2 {[%clk 0:02:50.7]} 11. Qxc2
{[%clk 0:02:50.3]} 11... b6 {[%clk 0:02:47.6]} 12. Bg5 {[%clk 0:02:49.6]} 12...
h6 {[%clk 0:02:44]} 13. Bh4 {[%clk 0:02:48.3]} 13... Ba6 {[%clk 0:02:42.5]} 14.
Rfe1 {[%clk 0:02:48]} 14... d5 {[%clk 0:02:38.1]} 15. e5 {[%clk 0:02:46.6]}
15... Nh5 {[%clk 0:02:25.6]} 16. Bxe7 {[%clk 0:02:46.3]} 16... Qxe7 {[%clk
0:02:26.5]} 17. Rac1 {[%clk 0:02:45.1]} 17... Nf4 {[%clk 0:02:24]} 18. Re3
{[%clk 0:02:41.4]} 18... Rac8 {[%clk 0:02:19.8]} 19. Qa4 {[%clk 0:02:21.8]}
19... Be2 {[%clk 0:01:39.3]} 20. Re1 {[%clk 0:01:53.3]} 20... Bxf3 {[%clk
0:01:36.9]} 21. Rxf3 {[%clk 0:01:52.8]} 21... Rc4 {[%clk 0:01:24.9]} 22. Qd1
{[%clk 0:01:50.3]} 22... Ng6 {[%clk 0:01:09.8]} 23. a3 {[%clk 0:01:45]} 23... a6
{[%clk 0:01:04.4]} 24. g3 {[%clk 0:01:43.4]} 24... b5 {[%clk 0:01:02.1]} 25. h4
{[%clk 0:01:37.9]} 25... b4 {[%clk 0:01:01.1]} 26. Na4 {[%clk 0:01:32.1]} 26...
bxa3 {[%clk 0:00:54.1]} 27. Rxa3 {[%clk 0:01:31.4]} 27... Qb4 {[%clk 0:00:52.6]}
28. Rd3 {[%clk 0:01:24]} 28... Qxa4 {[%clk 0:00:52.1]} 29. b3 {[%clk 0:01:22.4]}
29... Qb4 {[%clk 0:00:45.4]} 30. bxc4 {[%clk 0:01:21.1]} 30... dxc4 {[%clk
0:00:46.3]} 31. Qd2 {[%clk 0:01:10.5]} 31... Qb5 {[%clk 0:00:27.9]} 32. Ra3
{[%clk 0:01:07.8]} 32... Rd8 {[%clk 0:00:18.7]} 33. Qa5 {[%clk 0:00:56.7]} 33...
Rxd4 {[%clk 0:00:10]} 34. Qxa6 {[%clk 0:00:53.7]} 34... Qd5 {[%clk 0:00:09.4]}
35. Qa8+ {[%clk 0:00:51.4]} 35... Kh7 {[%clk 0:00:10.1]} 36. Ra5 {[%clk
0:00:29.1]} 36... Qxa8 {[%clk 0:00:06.5]} 37. Rxa8 {[%clk 0:00:30]} 37... Rd5
{[%clk 0:00:07]} 38. f4 {[%clk 0:00:28.6]} 38... Ne7 {[%clk 0:00:07.6]} 39. Ra7
{[%clk 0:00:28.2]} 39... Nf5 {[%clk 0:00:08.4]} 40. Rxf7 {[%clk 0:00:14.5]}
40... Nxg3 {[%clk 0:00:09.1]} 41. Re7 {[%clk 0:00:14.2]} 41... Nf5 {[%clk
0:00:09.9]} 42. Rxe6 {[%clk 0:00:14.2]} 42... Nxh4 {[%clk 0:00:10.8]} 43. Kf2
{[%clk 0:00:12]} 43... Rd2+ {[%clk 0:00:09.4]} 44. Re2 {[%clk 0:00:11.6]} 44...
c3 {[%clk 0:00:10.2]} 45. Rxd2 {[%clk 0:00:10.8]} 45... cxd2 {[%clk 0:00:11.1]}
46. Rd6 {[%clk 0:00:11.2]} 46... d1=Q {[%clk 0:00:08.4]} 47. Rxd1 {[%clk
0:00:11.4]} 47... Kg6 {[%clk 0:00:09.3]} 48. Rg1+ {[%clk 0:00:07.7]} 48... Kf5
{[%clk 0:00:08.5]} 49. Rxg7 {[%clk 0:00:08.1]} 49... Ng6 {[%clk 0:00:08.7]} 50.
Rf7+ {[%clk 0:00:05.8]} 50... Ke4 {[%clk 0:00:07.8]} 51. e6 {[%clk 0:00:06.2]}
51... Nxf4 {[%clk 0:00:07.8]} 52. Rxf4+ {[%clk 0:00:06.4]} 52... Kxf4 {[%clk
0:00:08.5]} 53. e7 {[%clk 0:00:07.2]} 1-0

[Event "Late-Titled-Tuesday-Blitz-February-06-2024"]
[Site "Chess.com"]
[Date "2024.02.06"]
[Round "2"]
[White "ChEsper99"]
[Black "Road2GM3000"]
[Result "1-0"]
[WhiteElo "2236"]
[BlackElo "2484"]
[TimeControl "180+1"]
[EndTime "14:18:46 PST"]
[Termination "ChEsper99 won by resignation"]

1. e4 {[%clk 0:03:00.9]} 1... c5 {[%clk 0:03:00.2]} 2. Nf3 {[%clk 0:03:00.9]}
2... d6 {[%clk 0:03:01]} 3. Bb5+ {[%clk 0:03:00.6]} 3... Bd7 {[%clk 0:03:01]} 4.
Bxd7+ {[%clk 0:03:00.7]} 4... Nxd7 {[%clk 0:03:01.9]} 5. O-O {[%clk 0:03:00]}
5... Ngf6 {[%clk 0:03:02.6]} 6. d3 {[%clk 0:02:57.6]} 6... e6 {[%clk 0:03:03.2]}
7. c4 {[%clk 0:02:56.5]} 7... Be7 {[%clk 0:03:01.7]} 8. Nc3 {[%clk 0:02:56.3]}
8... O-O {[%clk 0:03:02.3]} 9. h3 {[%clk 0:02:55.8]} 9... Ne8 {[%clk 0:02:58.4]}
10. Be3 {[%clk 0:02:46.5]} 10... Nc7 {[%clk 0:02:57.2]} 11. d4 {[%clk
0:02:44.5]} 11... cxd4 {[%clk 0:02:55.9]} 12. Nxd4 {[%clk 0:02:44.6]} 12... Ne5
{[%clk 0:02:50.6]} 13. b3 {[%clk 0:02:42.2]} 13... Na6 {[%clk 0:02:46.9]} 14. f4
{[%clk 0:02:41.3]} 14... Nd7 {[%clk 0:02:46.3]} 15. Rc1 {[%clk 0:02:40.5]} 15...
Nac5 {[%clk 0:02:45.8]} 16. Ndb5 {[%clk 0:02:38.3]} 16... a6 {[%clk 0:02:44.6]}
17. Nxd6 {[%clk 0:02:36.3]} 17... e5 {[%clk 0:02:30.2]} 18. Nf5 {[%clk
0:02:24.1]} 18... exf4 {[%clk 0:02:27.8]} 19. Bxf4 {[%clk 0:02:18.7]} 19... Bf6
{[%clk 0:02:24.1]} 20. Re1 {[%clk 0:02:06.8]} 20... Qb6 {[%clk 0:02:18.4]} 21.
Kh2 {[%clk 0:02:03.4]} 21... Rad8 {[%clk 0:02:13.3]} 22. Nd5 {[%clk 0:02:03.3]}
22... Qa7 {[%clk 0:02:06.4]} 23. Nxf6+ {[%clk 0:01:55]} 23... Nxf6 {[%clk
0:02:04.8]} 24. Qf3 {[%clk 0:01:54.7]} 24... Nd3 {[%clk 0:01:59.8]} 25. Bg5
{[%clk 0:01:38.7]} 25... Nxe1 {[%clk 0:01:53.8]} 26. Rxe1 {[%clk 0:01:38.6]}
26... Qb8+ {[%clk 0:01:06.3]} 27. Kh1 {[%clk 0:01:30]} 27... Qe5 {[%clk
0:01:04.7]} 28. Bf4 {[%clk 0:01:09]} 28... Qe6 {[%clk 0:01:01.8]} 29. Bg5 {[%clk
0:00:52.4]} 29... Rde8 {[%clk 0:00:56.5]} 30. e5 {[%clk 0:00:32.1]} 30... Nd7
{[%clk 0:00:50.5]} 31. Qg4 {[%clk 0:00:02.5]} 31... h5 {[%clk 0:00:40.3]} 32.
Qf4 {[%clk 0:00:01.3]} 32... Nxe5 {[%clk 0:00:36.6]} 33. Nd4 {[%clk 0:00:01.5]}
33... f6 {[%clk 0:00:34.7]} 34. Nxe6 {[%clk 0:00:01.3]} 34... Rxe6 {[%clk
0:00:35.6]} 35. Qf5 {[%clk 0:00:01.2]} 35... Rfe8 {[%clk 0:00:34.1]} 36. Bf4
{[%clk 0:00:01.6]} 36... g6 {[%clk 0:00:31.3]} 37. Qc2 {[%clk 0:00:01.7]} 37...
Nf7 {[%clk 0:00:21.5]} 38. Rxe6 {[%clk 0:00:01.6]} 38... Rxe6 {[%clk 0:00:22.4]}
39. Qxg6+ {[%clk 0:00:01.7]} 39... Kf8 {[%clk 0:00:22.2]} 40. Qxh5 {[%clk
0:00:02.6]} 40... Re1+ {[%clk 0:00:22.6]} 41. Kh2 {[%clk 0:00:03.1]} 41... Re6
{[%clk 0:00:23.5]} 42. Bg3 {[%clk 0:00:03.5]} 42... Ke7 {[%clk 0:00:24.4]} 43.
Qf3 {[%clk 0:00:03.9]} 43... Ng5 {[%clk 0:00:24.1]} 44. Qf4 {[%clk 0:00:04.2]}
44... Ne4 {[%clk 0:00:24.8]} 45. Bf2 {[%clk 0:00:03.7]} 45... Kf8 {[%clk
0:00:25.6]} 46. Qe3 {[%clk 0:00:03.9]} 46... Ng5 {[%clk 0:00:22.7]} 47. Qg3
{[%clk 0:00:04.2]} 47... Kf7 {[%clk 0:00:22.7]} 48. Qf4 {[%clk 0:00:04.6]} 48...
Re7 {[%clk 0:00:23.6]} 49. h4 {[%clk 0:00:05.1]} 49... Re4 {[%clk 0:00:24.1]}
50. Qg3 {[%clk 0:00:04.1]} 50... Ne6 {[%clk 0:00:23.6]} 51. Qf3 {[%clk
0:00:04.3]} 51... Re5 {[%clk 0:00:23.7]} 52. h5 {[%clk 0:00:04.1]} 52... Ng5
{[%clk 0:00:24.3]} 53. Qf4 {[%clk 0:00:03.9]} 53... Re4 {[%clk 0:00:24.7]} 54.
Qg3 {[%clk 0:00:03.2]} 54... Re8 {[%clk 0:00:24.1]} 55. Be3 {[%clk 0:00:03.7]}
55... Rh8 {[%clk 0:00:24.8]} 56. Bxg5 {[%clk 0:00:03.6]} 56... fxg5 {[%clk
0:00:25.7]} 57. Qg4 {[%clk 0:00:03.3]} 57... Rg8 {[%clk 0:00:26.6]} 58. Qf5+
{[%clk 0:00:03.8]} 58... Kg7 {[%clk 0:00:27]} 59. g4 {[%clk 0:00:04.5]} 59...
Kh6 {[%clk 0:00:27.3]} 60. Qf6+ {[%clk 0:00:04.8]} 60... Kh7 {[%clk 0:00:27.8]}
61. Qf7+ {[%clk 0:00:05.3]} 61... Rg7 {[%clk 0:00:28.2]} 62. Qxg7+ {[%clk
0:00:05.7]} 62... Kxg7 {[%clk 0:00:28.9]} 63. Kg3 {[%clk 0:00:06.2]} 63... b5
{[%clk 0:00:29.5]} 64. Kf3 {[%clk 0:00:06.8]} 64... bxc4 {[%clk 0:00:30.4]} 65.
bxc4 {[%clk 0:00:07]} 1-0